[Event "Tata Steel-A 80th"]
[Site "Wijk aan Zee"]
[Date "2018.01.24"]
[Round "10"]
[White "Jones, Gawain C B"]
[Black "Anand, Viswanathan"]
[Result "0-1"]
[ECO "B22"]
[WhiteElo "2640"]
[BlackElo "2767"]
[Annotator "Fernandez,D"]
[PlyCount "80"]
[EventDate "2018.01.13"]
[EventType "tourn"]
[EventRounds "13"]
[EventCountry "NED"]
[EventCategory "20"]
[SourceTitle "CBM 183"]
[Source "ChessBase"]
[SourceDate "2018.03.14"]
[SourceVersion "1"]
[SourceVersionDate "2018.03.14"]
[SourceQuality "1"]
[TimeControl "40/6000+30:20/3000+30:900+30"]

1. e4 {[%emt 0:00:00]} c5 {[%emt 0:00:11]} 2. c3 {[%emt 0:00:00] Another rare
guest at the top levels, but Gawain Jones is nothing if not a connoisseur of
anti-Sicilians.} Nf6 {[%emt 0:00:15]} 3. e5 {[%emt 0:00:03]} Nd5 {[%emt 0:00:
06]} 4. Nf3 {[%emt 0:00:04]} Nc6 {[%emt 0:00:20]} 5. Bc4 {[%emt 0:00:17]} (5.
d4 {is marginally more popular, but has been largely de-fanged.}) 5... Nb6 {
[%emt 0:00:08]} 6. Bb3 {[%emt 0:00:07]} c4 {[%emt 0:00:06] Seizing control of
c4 now gives White slightly fewer options and makes clear that Black is
playing for a win.} (6... d6 7. exd6 Qxd6 8. Na3 $5 {is an interesting idea,
seen in a number of elite games. For instance,} Be6 9. d4 Bxb3 10. Qxb3 cxd4
11. Nb5 Qb8 12. Nbxd4 $36 {Nakamura,H-Nepomniachtchi, I Baku 2015}) 7. Bc2 {
[%emt 0:00:04]} d6 {[%emt 0:00:07]} 8. exd6 {[%emt 0:00:10]} Qxd6 {[%emt 0:00:
08]} (8... e5 $5 {is even more militantly maximalist, but it is a bit
unncessary and could come unstuck, e.g.} 9. a4 Bxd6 10. O-O Be6 11. d3 h6 12.
a5 Nc8 13. a6 $14 {Howell,D-Lazarev,V France 2006}) 9. O-O {[%emt 0:00:10]} Bg4
{[%emt 0:00:09]} 10. h3 {[%emt 0:00:11]} Bh5 {[%emt 0:00:44]} 11. Re1 {[%emt 0:
00:17]} O-O-O {[%emt 0:11:42]} 12. Be4 {[%emt 0:07:24] Discouraging all kinds
of ...Qf6 ideas. This move has far more to it than meets the eye.} (12. b3 Qf6
13. bxc4 $132 {brings about an interesting imbalance}) (12. Na3 {could be
another implementation of the game idea:} Qf6 13. Be4 Ne5 14. g4 $132 {
Vysochin, S-Kokarev,D Olginka 2011}) 12... e6 {[%emt 0:12:45]} (12... Qd7 $5 {
might be a slight improvement.} 13. b3 f5 14. Bxc6 (14. Bc2 e5 $17) 14... Qxc6
15. Qc2 $1 (15. g4 fxg4 16. Ne5 Qf6 17. hxg4 Be8 $132 {should practically
favour Black}) 15... Bxf3 16. Qxf5+ e6 17. Qxf3 Qxf3 18. gxf3 Rd3 $44 {Black
has good compensation, and practical chances based on White's exposed king,
but I don't think he is actually better.}) 13. b3 {[%emt 0:04:01]} f5 {[%emt 0:
01:13]} 14. Bc2 {[%emt 0:02:54]} g6 {[%emt 0:02:10]} 15. bxc4 {[%emt 0:00:50]}
e5 {[%emt 0:04:51]} 16. d4 $6 {[%emt 0:06:02]} (16. d3 {keeps chances of a
slight objective edge, although neither I nor the engine properly understand
Black's pawn sacrifice.}) 16... exd4 {[%emt 0:04:22]} 17. Bg5 {[%emt 0:11:13]}
Bg7 $1 {[%emt 0:07:59] A really powerful exchange sacrifice, which must have
been underestimated.} (17... d3 18. Bb3 Be7 $11) 18. Bxd8 {[%emt 0:06:13]} Rxd8
{[%emt 0:00:16]} 19. Qd3 {[%emt 0:05:57]} Qf4 $17 {[%emt 0:06:18] White finds
it impossible to disentangle because of the pressure on the long diagonal.} 20.
Qd2 {[%emt 0:23:41]} (20. Na3 dxc3 21. Qe3 {might have been a better wriggle.})
20... Qxd2 {[%emt 0:02:05]} 21. Nbxd2 {[%emt 0:02:13]} dxc3 {[%emt 0:00:19]}
22. Nb3 {[%emt 0:00:42]} Bxf3 {[%emt 0:00:46]} 23. gxf3 {[%emt 0:06:10]} Nb4 {
[%emt 0:00:26]} 24. Re2 {[%emt 0:01:28]} Nxc4 {[%emt 0:01:02] Now Black has
reached material parity, and the difference in quality of pieces is obvious.
Nevertheless, it is not so clear how precisely Black should push the queenside
pawns.} 25. Rc1 {[%emt 0:10:21]} b5 {[%emt 0:06:13]} 26. Na1 {[%emt 0:05:51]}
Bh6 {[%emt 0:02:13]} 27. Rb1 {[%emt 0:00:55]} a5 {[%emt 0:00:15]} 28. Kg2 {
[%emt 0:06:26]} Nd2 {[%emt 0:06:11]} 29. Rbe1 {[%emt 0:00:46]} Bf4 {[%emt 0:02:
48] Fully under control. White can barely move. The rest is just good 
(although not tricky) technique.} 30. Re7 {[%emt 0:01:35]} Rd7 {[%emt 0:01:46]}
31. Re8+ {[%emt 0:01:25]} Kc7 {[%emt 0:00:15]} 32. Ra8 {[%emt 0:03:43]} a4 {
[%emt 0:01:37]} 33. Re6 {[%emt 0:01:37]} Kb7 {[%emt 0:02:53]} 34. Rae8 {
[%emt 0:01:55]} Bd6 {[%emt 0:00:47]} 35. Bd1 {[%emt 0:01:00]} Nd5 {[%emt 0:00:
18]} 36. Re1 {[%emt 0:00:36]} Nf4+ {[%emt 0:00:17]} 37. Kh1 {[%emt 0:00:04]}
Bc5 {[%emt 0:01:56]} 38. Be2 {[%emt 0:01:23]} Nxe2 {[%emt 0:00:14]} 39. R1xe2 {
[%emt 0:01:00]} b4 {[%emt 0:00:29]} 40. R2e5 {[%emt 0:00:00]} Rc7 {[%emt 0:00:
47] The time control was reached and despite still not being material down,
there is precious little White can do about ...b3 et cetera, so he resigned.}
0-1

[Event "Tata Steel-A 80th"]
[Site "Wijk aan Zee"]
[Date "2018.01.24"]
[Round "10"]
[White "Kramnik, Vladimir"]
[Black "Matlakov, Maxim"]
[Result "1-0"]
[ECO "C54"]
[WhiteElo "2787"]
[BlackElo "2718"]
[Annotator "Fernandez,D"]
[PlyCount "77"]
[EventDate "2018.01.13"]
[EventType "tourn"]
[EventRounds "13"]
[EventCountry "NED"]
[EventCategory "20"]
[SourceTitle "CBM 183"]
[Source "ChessBase"]
[SourceDate "2018.03.14"]
[SourceVersion "1"]
[SourceVersionDate "2018.03.14"]
[SourceQuality "1"]
[TimeControl "40/6000+30:20/3000+30:900+30"]

{[%evp 0,81,38,30,22,22,21,9,17,21,21,15,-13,-13,-18,-38,-8,-5,-6,-12,12,1,-5,
-3,21,9,9,-19,5,1,-5,-4,35,32,16,-27,-27,-43,-10,-1,5,-3,14,-11,17,21,32,33,39,
65,146,78,110,110,146,90,86,31,29,0,49,24,50,40,42,0,5,5,92,107,130,140,99,56,
109,99,124,138,408,446,549,549,556,645]} 1. e4 {[%emt 0:00:00]} e5 {[%emt 0:00:
16]} 2. Nf3 {[%emt 0:00:00]} Nc6 {[%emt 0:00:08]} 3. Bc4 {[%emt 0:00:04]} Bc5 {
[%emt 0:00:17]} 4. c3 {[%emt 0:00:20]} Nf6 {[%emt 0:00:24]} 5. d3 {[%emt 0:00:
06]} O-O {[%emt 0:00:34]} 6. Bg5 {[%emt 0:00:26] Opting, oddly enough, for a
similar strategy to the one Anand used against Matlakov in the first round,
despite that opening beginning with 3.Bb5. Here it seems like the immediate
idea is probably to prevent Black using a setup with ...d5.} h6 {[%emt 0:04:29]
} 7. Bh4 {[%emt 0:00:15]} Be7 {[%emt 0:00:07]} (7... g5 {led to a draw in a
recent high-profile game.} 8. Bg3 d6 9. a4 a6 10. Qd2 Nh5 11. h4 Nxg3 12. fxg3
g4 13. Qxh6 gxf3 14. Qg6+ Kh8 15. Qh6+ Kg8 16. Qg6+ Kh8 $11 {Vachier Lagrave,
M-Karjakin,S Paris 2017}) 8. Nbd2 {[%emt 0:00:14]} d6 {[%emt 0:00:57]} (8...
Na5 $5 {is not a completely pointless gambit:} 9. Nxe5 Nxc4 10. Nexc4 (10. dxc4
Nxe4 $15) 10... d5 11. Ne3 dxe4 12. Bxf6 Bxf6 13. Nxe4 Be7 $132 {With two
bishops for two knights and a pawn, Black has very reasonable counterplay,
analogous perhaps to the Gajewski line of the Ruy Lopez.}) 9. Bb3 {[%emt 0:00:
53]} (9. a4 {was faced by Kramnik himself from the other side of the board
recently.} Nh5 10. Bg3 Nxg3 (10... Nb8 $5 {could have been played immediately,
not giving White the needed clarity on what is happening on the h-file.} 11.
Nf1 (11. Nxe5 {is obvious, but following} Nxg3 12. Nxf7 Rxf7 13. hxg3 Qf8 $13 {
White will soon have nothing better than to enter a double-edged material
balance of two pawns plus rook against two bishops, which probably should
ultimately favour the bishops.}) 11... c6 12. Ne3 Nd7 $11 {Playing for ...Ndf6
and ...d5. White should probably castle short, but the moment he does that, he
will no longer ever use the h-file.}) 11. hxg3 Nb8 12. Nf1 c6 13. Ne3 Na6 14.
g4 (14. Bxa6 bxa6 15. d4 $14) 14... Nc7 $11 {Vachier Lagrave,M-Kramnik,V
Leuven 2017, Following a slightly complicated opening battle Black had
equalised.}) 9... Nh5 {[%emt 0:03:02]} (9... Na5 10. Bc2 c5 $132 {is another
standard plan, and Black will probably continue with ...Be6, ...Nc6 and
consider ...d5.}) 10. Bxe7 {[%emt 0:00:13]} Qxe7 {[%emt 0:02:36]} 11. Nc4 {
[%emt 0:00:19]} Qf6 {[%emt 0:09:14] Telegraphing a kingside attack rather
clearly, but this then prompts White's overreaction.} (11... Be6 12. Ne3 Nf6 {
was solid in Baramidze, D-Fressinet,L Germany 2009.}) 12. Ne3 {[%emt 0:03:57]}
Nf4 {[%emt 0:13:54]} 13. Bc2 {[%emt 0:00:47]} (13. O-O {followed by g3 could
have been one way to go.} Ne7 14. d4 g5 15. g3 $132) 13... Ne7 {[%emt 0:03:19]}
14. g3 {[%emt 0:07:03]} Nh3 {[%emt 0:00:50]} 15. Qe2 {[%emt 0:01:29] Now we
can see what Kramnik is playing for: a sharp opposite-side castling position.}
c5 {[%emt 0:06:00]} 16. O-O-O {[%emt 0:10:22]} (16. Ng1 $11 {or something was
technically still legal, but who plays chess like this?}) 16... Be6 {[%emt 0:
03:06]} 17. d4 {[%emt 0:17:27]} (17. Kb1 $5 {is almost always useful
preparation, and that holds here too.} Rfc8 18. d4 cxd4 19. cxd4 $132) 17...
cxd4 {[%emt 0:17:53]} 18. cxd4 {[%emt 0:00:07]} Rac8 {[%emt 0:03:50] Missing a
chance.} (18... Bxa2 $5 {is possible here according to the machines, and it
seems to get an edge! The critical line is} 19. b3 a5 20. Kb2 $6 a4 21. Kxa2 $2
axb3+ 22. Kxb3 d5 $19) 19. Kb1 {[%emt 0:08:54]} Rc7 {[%emt 0:08:45]} (19...
Rxc2 {was another noteworthy chance, though not obvious if you're not looking
for it. The point is the non-trivial} 20. Kxc2 $6 Qg6 $3 $17) 20. Rd2 {[%emt 0:
03:36]} Rfc8 {[%emt 0:01:31]} 21. dxe5 {[%emt 0:12:33]} dxe5 {[%emt 0:00:05]}
22. Rhd1 {[%emt 0:00:25] Now everything is under control, and just like in
Anand-Matlakov from round 1, the position is just easier for White, even if
not actually better.} g6 {[%emt 0:07:13]} (22... b5 $5 {is a little bit faster.
}) 23. Rd6 {[%emt 0:09:28]} Rc6 {[%emt 0:01:30]} 24. Bb3 {[%emt 0:03:13]} Rf8
$2 {[%emt 0:12:04]} (24... Rxd6 25. Rxd6 h5 {survives according to the machine,
but White is definitely significantly better after even the simple} 26. a3 $36)
25. R1d3 $2 {[%emt 0:08:44]} ({If I had to guess I would say Black's last move
was based on using the f-file after} 25. Bxe6 {but neither order quite works:}
Rxd6 (25... fxe6 26. Rd8 $1 $16) 26. Bxh3 $1 $18 (26. Rxd6 fxe6 $14)) 25...
Rfc8 {[%emt 0:00:42]} 26. Rd1 {[%emt 0:02:18]} Rf8 {[%emt 0:00:23]} 27. a3 {
[%emt 0:01:12] Missing the same idea again.} h5 {[%emt 0:05:04] It is
generally useful to avoid Ng4 motifs.} 28. Bxe6 {[%emt 0:04:15]} fxe6 {[%emt 0:
00:02]} 29. Rd7 {[%emt 0:00:20]} Nc8 $2 {[%emt 0:02:38]} (29... Qxf3 30. Qxf3
Rxf3 31. Rxe7 Rf7 {almost equalises, and so should be preferred.}) 30. Nc4 {
[%emt 0:09:50]} (30. Nh4 $16 {is another option, cuing up interesting Nd5
ideas.}) 30... Nxf2 {[%emt 0:01:54]} 31. Ncxe5 {[%emt 0:02:51] An alluring and
practically tricky option, but not objectively best.} (31. Rf1 $5 Rxc4 32. Rxf2
{leaves Black with bizarrely few options against Qe3-h6. The only move is} Rd4
$8 {but now if nothing else White acheives a large advantage with} 33. Nxd4
Qxf2 34. Qxf2 Rxf2 35. Nxe6 Rxh2 36. Rxb7 $16) 31... Nxd1 {[%emt 0:00:06]} 32.
Qxd1 {[%emt 0:00:10]} Rc5 {[%emt 0:01:47]} (32... Rb6 33. Qd2 g5 $11 {is the
machine defence.}) 33. Qd4 {[%emt 0:00:52] This is now practically impossible
to defend, but the errors understandably continue from both sides.} Nb6 {
[%emt 0:00:42]} (33... Rb5 34. Rc7 {might look like a lethal battery, but
Black can execute the text move now:} Nb6 $14 {and Black has gained a tempo
over the text.}) 34. Rxb7 {[%emt 0:01:56]} Rb5 {[%emt 0:01:25]} 35. Rxa7 Rd8 {
[%emt 0:00:18]} 36. Qc3 {[%emt 0:02:15]} (36. Rf7 $3 $16) 36... Rc8 {[%emt 0:
00:30]} (36... Nd7 $3 $132) 37. Rc7 {No further accidents.} Rd8 {[%emt 0:00:42]
} 38. Qc6 {[%emt 0:01:28]} Rb3 {[%emt 0:00:39]} (38... Rxe5 39. Nxe5 Qxe5 40.
Qxb6 Qxe4+ 41. Ka2 Qd5+ 42. Qb3 $16 {is basically over too.}) 39. Rf7 $1 {
Enough to force resignation even if this was a time scramble.} (39. Rf7 $1 {
[%emt 0:00:30]} Qxf7 40. Nxf7 Kxf7 41. Ng5+ {wins a rook with the next check.})
1-0

[Event "Tata Steel-A 80th"]
[Site "Wijk aan Zee"]
[Date "2018.01.24"]
[Round "10"]
[White "Svidler, Peter"]
[Black "Mamedyarov, Shakhriyar"]
[Result "0-1"]
[ECO "D38"]
[WhiteElo "2768"]
[BlackElo "2804"]
[Annotator "Fernandez,D"]
[PlyCount "42"]
[EventDate "2018.01.13"]
[EventType "tourn"]
[EventRounds "13"]
[EventCountry "NED"]
[EventCategory "20"]
[SourceTitle "CBM 183"]
[Source "ChessBase"]
[SourceDate "2018.03.14"]
[SourceVersion "1"]
[SourceVersionDate "2018.03.14"]
[SourceQuality "1"]
[TimeControl "40/6000+30:20/3000+30:900+30"]

1. c4 Nf6 2. Nf3 e6 3. Nc3 d5 4. d4 Bb4 {The Ragozin: known to me as the
opening which won Jonathan Hawkins his first British national title.} 5. cxd5 {
5.Bg5 and 5.e3 are also played.} exd5 6. Bf4 (6. Bg5 {is the main move, and
after} h6 7. Bh4 c5 {the current fashion is for the ambitious} 8. dxc5 $5) 6...
Ne4 7. Qa4+ {A second minor move in a row by Peter Svidler lands him not in
completely new territory but certainly in slight danger.} (7. Rc1 {was a more
solid move in an obvious ideological precedent.} Nc6 8. Nd2 g5 9. Be3 Nxc3 10.
bxc3 Bd6 $132 {Svane,R-Socko,B Germany 2016}) 7... Nc6 8. Rc1 O-O 9. g3 (9. h4
{was necessary if a little uncomfortable. There could follow} Bg4 10. e3 Qe7
11. Be2 $11) (9. e3 g5 10. Bg3 h5 11. h4 g4 12. Ne5 Bxc3+ 13. Rxc3 (13. bxc3
Nxg3 14. fxg3 Qe7 $17) 13... Nxc3 14. bxc3 Nxe5 15. Bxe5 Bf5 $15 {Ermenkov,
E-Shyam,S Albena 2015}) 9... g5 10. Be3 f5 (10... Bxc3+ 11. bxc3 f5 {was a
marginally more precise order.}) 11. Bg2 {Kind of a wasted move since White
will never get to castle.} (11. Bd2 $5 Bxc3 12. Bxc3 {was an additional option
granted by Black's last.}) 11... f4 {[%emt 0:35:06]} 12. gxf4 {[%emt 0:35:56]}
(12. Bd2 {can be met in various ways, including} g4 13. Ne5 Bxc3 14. bxc3 Nxd2
15. Kxd2 Nxe5 16. dxe5 fxg3 $15) 12... Bxc3+ {[%emt 0:00:08]} 13. bxc3 {
[%emt 0:00:33]} gxf4 {[%emt 0:00:09]} 14. Bd2 {[%emt 0:00:10]} Kh8 $1 $17 {
[%emt 0:03:03] The absolute best move. After less than 15 moves White has no
castling prospects and is close to lost.} 15. Qb3 $2 {[%emt 0:35:15] Not
helping.} (15. Rg1 Be6 16. Bf1 {is one way of trying to get belated
counterplay.}) ({After} 15. O-O Qf6 $1 {White will be unable to form a
coherent defence against doubling on the g-file.}) 15... Na5 {[%emt 0:03:05]
Unfortunately, this natural move gains a great many tempi.} 16. Qc2 {[%emt 0:
06:27]} Nc4 {[%emt 0:00:47] The obvious threat is ...Bg4 trapping the
d2-bishop, but there are others.} 17. Rd1 {[%emt 0:01:32]} Rg8 {[%emt 0:07:46]}
(17... Qe7 {is most favoured by machines, which want to continue ...Bf5 and ...
Rae8, but it is much of a muchness by now.}) 18. Ne5 {[%emt 0:04:30]} Nxe5 {
[%emt 0:00:22]} 19. Bxe4 {[%emt 0:01:20]} Qg5 {[%emt 0:00:34]} (19... dxe4 20.
Bxf4 Ng6 21. Bg3 {is also dead, but the game might last a bit longer since
White has a good bishop.}) 20. Bxf4 {[%emt 0:07:49]} Qxf4 {[%emt 0:00:06]} 21.
Bxd5 {[%emt 0:00:07]} Bf5 $1 {[%emt 0:00:28] It's a clear piece and maybe even
more. A shame that Svidler was not able to demonstrate his usual good chess
today.} 0-1

[Event "Tata Steel-A 80th"]
[Site "Wijk aan Zee"]
[Date "2018.01.26"]
[Round "11"]
[White "Adhiban, Baskaran"]
[Black "Wei, Yi"]
[Result "1/2-1/2"]
[ECO "A37"]
[WhiteElo "2655"]
[BlackElo "2743"]
[PlyCount "41"]
[EventDate "2018.01.13"]
[EventType "tourn"]
[EventRounds "13"]
[EventCountry "NED"]
[EventCategory "20"]
[SourceTitle "CBM 183"]
[Source "ChessBase"]
[SourceDate "2018.03.14"]
[SourceVersion "1"]
[SourceVersionDate "2018.03.14"]
[SourceQuality "1"]
[TimeControl "40/6000+30:20/3000+30:900+30"]

1. c4 {[%emt 0:00:00]} c5 {[%emt 0:00:34]} 2. Nc3 {[%emt 0:00:00]} g6 {[%emt 0:
00:38]} 3. Nf3 {[%emt 0:08:02]} Bg7 {[%emt 0:00:19]} 4. g3 {[%emt 0:03:04]} Nc6
{[%emt 0:01:59]} 5. Bg2 {[%emt 0:00:04]} e5 {[%emt 0:09:27]} 6. d3 {[%emt 0:01:
50]} Nge7 {[%emt 0:00:57]} 7. Nd2 {[%emt 0:00:34]} d6 {[%emt 0:00:46]} 8. Nf1 {
[%emt 0:00:17]} a6 {[%emt 0:13:57]} 9. Bg5 {[%emt 0:02:32]} Rb8 {[%emt 0:02:44]
} 10. a4 {[%emt 0:03:55]} Be6 {[%emt 0:09:12]} 11. Bxe7 {[%emt 0:01:01]} Nxe7 {
[%emt 0:03:29]} 12. Ne3 {[%emt 0:00:04]} h5 {[%emt 0:01:34]} 13. h4 {[%emt 0:
00:51]} O-O {[%emt 0:02:51]} 14. Ned5 {[%emt 0:05:56]} Nc6 {[%emt 0:15:25]} 15.
e3 {[%emt 0:09:02]} a5 {[%emt 0:05:16]} 16. O-O {[%emt 0:13:01]} Nb4 {[%emt 0:
00:17]} 17. Qd2 {[%emt 0:19:01]} Qd7 {[%emt 0:01:27]} 18. Nxb4 {[%emt 0:01:52]}
cxb4 {[%emt 0:01:47]} 19. Ne4 {[%emt 0:00:21]} Kh8 {[%emt 0:05:24]} 20. Ng5 {
[%emt 0:00:42]} Rbe8 {[%emt 0:04:25]} 21. Nxe6 {[%emt 0:05:56]} 1/2-1/2